Cogmind - Beta 15 @@@ ROGUE MODE // 2025.06.01 @ 20:36:59 Player: Duduxx Result: Destroyed by Y-64 Sentinel with Wave Gun Performance ------------- Evolutions (3) 1500 Regions Visited (7) 1400 Robots Destroyed (62) 310 Value Destroyed (2399) 2399 Prototype IDs (2) 40 Alien Tech Used (0) 0 Bonus (1374) 1374 TOTAL SCORE: 7023 Bonus ------- High Alert Combat Kills 363 Follower Combat Kills 311 Entered Garrisons 200 Used RIF Installer 500 Cogmind --------- Core Integrity 0/700 Matter 240/300 Energy 100/100 System Corruption 23% Temperature Cool (9) Movement Flying (35) Location -7/Lower Caves Parts ------- > --- POWER (2) -------- (None) > --- PROPULSION (3) --- VTOL Module > --- UTILITY (6) ------ Makeshift Hacking Suite Relay Coupler [Grunt] (25) > --- WEAPON (2) ------- Spear > --- INVENTORY (5) ---- Light Nuclear Core Relay Coupler [Duelist] (23) Relay Coupler [Specialist] (23) Relay Coupler [Hunter] (13) Remote Datajack Peak State ------------ > --- POWER ------------ Improved Ion Engine Nuclear Core > --- PROPULSION ------- Aluminum Leg Carbon-fiber Leg VSS Leg > --- UTILITY ---------- Medium Storage Unit Advanced Weight Redist. System Improved Terrain Scanner Improved Shield Generator Makeshift Hacking Suite Relay Coupler [Grunt] > --- WEAPON ----------- Particle Gun Spear > --- INVENTORY -------- Light Ion Engine Makeshift Leg Relay Coupler [Grunt] Relay Coupler [Duelist] Relay Coupler [Specialist] Relay Coupler [Hunter] Beam Rifle Particle Gun Shock Bomb Launcher Remote Datajack [Rating: 39] Favorites ----------- Power Improved Ion Engine Engine Improved Ion Engine Power Core Nuclear Core Propulsion Carbon-fiber Leg Treads Light Treads Leg Carbon-fiber Leg Wheel Subdweller Monowheel Flight Unit VTOL Module Utility Medium Storage Unit Device Improved Heat Sink Storage Medium Storage Unit Hackware Relay Coupler [Grunt] Protection Light Armor Plating Weapon Beam Rifle Energy Gun Beam Rifle Energy Cannon Subdweller Beam Cannon Ballistic Gun Light Assault Rifle Launcher Shock Bomb Launcher Special Weapon Remote Datajack Piercing Weapon Spear Build | -11 -10 -10 -8 -8 -7 -7 -7 ------- Run | Yrd Mat Sub Mat Gar Fac Low Low Slots Evolved 6 | . . . 4 . 2 . . Power 1 | . . . 1 . . . . Propulsion 1 | . . . . . 1 . . Utility 4 | . . . 3 . 1 . . Weapon . | . . . . . . . . Parts Attached 78 | 7 5 2 4 35 6 10 9 Power 15 | 1 2 . 1 8 1 . 2 Engine 10 | 1 2 . 1 5 . . 1 Core 5 | . . . . 3 1 . 1 Reactor . | . . . . . . . . Propulsion 22 | 2 2 . . 10 1 3 4 Treads 9 | 2 . . . 5 . 1 1 Leg 7 | . . . . 2 1 2 2 Wheel 5 | . 2 . . 3 . . . Hover . | . . . . . . . . Flight 1 | . . . . . . . 1 Utility 27 | 2 1 1 3 9 4 5 2 Device 13 | 1 1 . 2 4 1 4 . Storage 3 | 1 . 1 . . . . 1 Processor . | . . . . . . . . Hackware 4 | . . . . . 2 1 1 Protection 7 | . . . 1 5 1 . . Artifact . | . . . . . . . . Weapon 14 | 2 . 1 . 8 . 2 1 Energy Gun 8 | 1 . . . 5 . 1 1 Energy Cannon 1 | . . 1 . . . . . Ballistic Gun 1 | 1 . . . . . . . Ballistic Cannon . | . . . . . . . . Launcher 2 | . . . . 2 . . . Special Weapon 1 | . . . . . . 1 . Impact Weapon . | . . . . . . . . Slashing Weapon . | . . . . . . . . Piercing Weapon 1 | . . . . 1 . . . Special Melee Weapon . | . . . . . . . . Unidentified Prototypes . | . . . . . . . . Corrupted Parts 3 | . . . . 2 . . 1 System Corruption 10 | . . . . 8 . . 2 Parts Lost 44 | . 2 . . 20 . 6 16 Power 7 | . 1 . . 3 . . 3 Propulsion 15 | . 1 . . 7 . 2 5 Utility 15 | . . . . 7 . 4 4 Weapon 7 | . . . . 3 . . 4 Highest Loss Streak 7 | . 2 . . 4 . 6 7 To Critical Strikes 1 | . . . . 1 . . . Average Backups 8 | 2 6 8 8 8 9 9 8 Power 1 | . 1 1 . 1 1 1 . Propulsion 1 | 1 1 2 3 1 . . . Utility 2 | . . 2 . 1 5 4 3 Weapon 3 | . 2 3 3 4 2 2 2 Tool/Special . | . . . . . . . . Unused Backups 8 | . 1 . . 3 1 . 3 Power 2 | . 1 . . . 1 . . Propulsion . | . . . . . . . . Utility 3 | . . . . . . . 3 Weapon 3 | . . . . 3 . . . Tool/Special . | . . . . . . . . Average Slot Usage (%) 90 | . 99 100 87 92 99 77 75 Engine 11 | . 13 14 15 13 8 7 7 Core 3 | . . . . 4 5 7 2 Treads 6 | . 26 . . 6 . 3 . Leg 8 | . . . . 4 23 18 15 Wheel 4 | . 1 28 18 5 . . . Device 15 | . 14 14 21 18 7 9 17 Storage 9 | . 14 14 9 9 7 7 8 Hackware 3 | . . . . . 7 9 15 Protection 8 | . . . 6 11 22 3 . Energy Gun 9 | . 14 14 9 12 7 2 . Energy Cannon 2 | . . 8 9 3 . . . Ballistic Gun 1 | . 14 5 . . . . . Piercing Weapon 3 | . . . . 2 7 6 3 Peak Build Rating 39 | 9 9 10 18 35 38 38 39 Average Rating 23 | 5 7 9 15 23 34 29 29 On Entrance 17 | . 9 9 10 18 23 38 36 Naked Turns . | . . . . . . . . Heaviest Build 42 | 12 14 26 34 41 42 42 34 Greatest Support 51 | 40 40 26 26 40 45 46 51 Greatest Overweight (x) 3 | . . . 1 3 . 1 2 Average Overweight (x) . | . . . . . . . . Largest Inventory Capacity 10 | 8 8 10 10 10 10 10 10 Average Capacity 9 | 7 8 8 10 10 10 10 9 Most Carried 10 | 4 8 9 10 10 10 10 10 Average Carried 8 | 2 6 8 7 8 9 9 8 Final Capacity 10 | 8 8 10 10 10 10 10 5 Final Carried 10 | 4 8 9 8 10 10 10 5 Class Distribution -------------------- 59% | Scavenger-Mutant 21% | Bothacker-Mutant 17% | Mutant Dominant Class ---------------- Mutant | -10/Materials Mutant | -10/Subcaves Infiltrator-Mutant | -8/Materials Scavenger-Mutant | -8/Garrison Scavenger-Mutant | -7/Factory Bothacker-Mutant | -7/Lower Caves Bothacker-Mutant | -7/Lower Caves Resources | -11 -10 -10 -8 -8 -7 -7 -7 ----------- Run | Yrd Mat Sub Mat Gar Fac Low Low Matter Collected 1401 | 268 78 31 . 537 96 254 137 Remotely . | . . . . . . . . Salvage Created 2700 | 29 339 100 . 1700 102 264 166 Parts 128 | 2 22 6 . 77 8 5 8 Haulers Intercepted . | . . . . . . . . Recyclers Shooed . | . . . . . . . . Parts Field Recycled . | . . . . . . . . Retrieved Matter . | . . . . . . . . Parts Self-Destructed 24 | . . 11 . . . 9 4 Prevented 1 | . . . . . . 1 . Kills | -11 -10 -10 -8 -8 -7 -7 -7 ------- Run | Yrd Mat Sub Mat Gar Fac Low Low Combat Hostiles Destroyed 58 | . 8 2 . 36 2 5 5 Melee 8 | . . . . . 1 3 4 Guns 32 | . 8 . . 20 1 2 1 Cannons 15 | . . 2 . 13 . . . AOE 2 | . . . . 2 . . . Classes Destroyed 11 | 1 5 . . 4 1 . . Tunneler 1 | 1 . . . . . . . Recycler 1 | . 1 . . . . . . Operator 1 | . 1 . . . . . . Swarmer 21 | . 3 . . 13 . 1 4 Grunt 9 | . 2 . . 6 . 1 . Brawler 6 | . . . . 3 . 2 1 Duelist 2 | . . . . 1 . 1 . Sentry 12 | . . . . 11 1 . . Hunter 2 | . . . . 2 . . . Programmer 1 | . . . . . 1 . . Subdweller 5 | . 3 2 . . . . . Butcher 1 | . . . . 1 . . . Best Kill Streak 7 | 1 4 2 . 7 1 3 4 Combat Bots Only 7 | . 3 2 . 7 1 3 4 Max Kills in Single Turn 2 | 1 1 1 . 2 1 1 1 Gunslinging . | . . . . . . . . Exploded 1 | . . . . 1 . . . Melee 1 | . . . . . 1 1 1 Uniques/NPCs Destroyed . | . . . . . . . . Combat | -11 -10 -10 -8 -8 -7 -7 -7 -------- Run | Yrd Mat Sub Mat Gar Fac Low Low Hostile Shots Fired 468 | . 58 2 . 209 41 36 122 Missed 139 | . 20 1 . 54 18 9 37 Hits 329 | . 38 1 . 155 23 27 85 Melee 29 | . . . . 6 . 20 3 Projectile 300 | . 38 1 . 149 23 7 82 Critical Strikes 9 | . . . . 4 1 3 1 Damage Taken 5216 | . 491 18 . 2164 225 801 1517 Core 1091 | . 65 . . 313 10 100 603 Absorbed by Shields 63 | . . . . . . 5 58 Redirected to Shielding 62 | . . . . 60 2 . . Core Remaining (%) 72 | 100 . 74 . 43 . . . Volleys Fired 216 | 1 35 7 1 136 4 18 14 Largest 2 | 2 2 2 2 2 1 2 2 Hottest 136 | 70 70 130 130 136 56 121 130 Shots Fired 387 | 2 70 14 2 254 4 24 17 Gun 293 | 2 70 8 1 180 4 15 13 Cannon 73 | . . 6 1 66 . . . Launcher 11 | . . . . 8 . . 3 Special 10 | . . . . . . 9 1 Kinetic 37 | 1 35 1 . . . . . Thermal 290 | 1 35 13 2 207 4 15 13 Explosive . | . . . . . . . . Electromagnetic 50 | . . . . 47 . . 3 Robot Hit Streak 17 | 1 17 5 1 13 2 6 6 Robot Miss Streak 6 | . 3 2 1 6 1 2 3 Penetration Max . | . . . . . . . . Secondary Targets 5 | . 2 . . 3 . . . Max Gunslinging Chain 1 | . 1 . . 1 . . . Shots Hit Robots 249 | 1 52 5 1 141 10 25 14 Core Hits 103 | 1 21 3 . 63 2 6 7 Critical Kills 1 | . . . . 1 . . . Critical Parts Destroyed 1 | . 1 . . . . . . Critical Strikes 15 | . 6 1 . 6 . 1 1 Burn 10 | . 5 1 . 4 . . . Meltdown 1 | . . . . 1 . . . Destroy 1 | . 1 . . . . . . Corrupt 1 | . . . . 1 . . . Impale 2 | . . . . . . 1 1 Melee Attacks 41 | . . . . 14 11 9 7 Impact . | . . . . . . . . Slashing . | . . . . . . . . Piercing 41 | . . . . 14 11 9 7 Sneak Attacks 2 | . . . . 1 1 . . Combat Hostiles 1 | . . . . . 1 . . Follow-up Attacks . | . . . . . . . . Damage Inflicted 4566 | 13 556 110 29 2957 270 322 309 Guns 2410 | 13 549 25 . 1497 30 162 134 Cannons 1271 | . . 85 29 1157 . . . Explosions 312 | . . . . 259 . . 53 Melee 566 | . . . . 44 240 160 122 Ramming 7 | . 7 . . . . . . Kinetic 236 | . 236 . . . . . . Thermal 3210 | 13 313 110 29 2419 30 162 134 Explosive . | . . . . . . . . Electromagnetic 547 | . . . . 494 . . 53 Impact . | . . . . . . . . Slashing . | . . . . . . . . Piercing 566 | . . . . 44 240 160 122 Highest Corruption 23 | . . . . 11 2 20 23 Average Corruption 14 | . . . . 10 1 16 20 Corruption Purged . | . . . . . . . . Corruption Blocked . | . . . . . . . . Effects 107 | . . . . 47 . 26 34 Message Errors 19 | . . . . 3 . 9 7 Matter Fused 27 | . . . . 12 . 5 10 Heat Flow Errors 14 | . . . . 9 . 3 2 Energy Discharges 11 | . . . . 8 . 2 1 Parts Rejected 1 | . . . . . . . 1 Parts Fused 1 | . . . . . . . 1 Data Loss (minor) 10 | . . . . 6 . 1 3 Data Loss (major) 7 | . . . . 2 . 3 2 Misfires 4 | . . . . 4 . . . Alerts 3 | . . . . . . 2 1 Misdirections 6 | . . . . . . . 6 Weapon Failures 4 | . . . . 3 . 1 . Overload Shots . | . . . . . . . . Overflow Damage 70 | . . . . 49 13 8 . Projectiles 38 | . . . . 38 . . . Explosions 11 | . . . . 11 . . . Melee 21 | . . . . . 13 8 . Knockbacks . | . . . . . . . . Impact . | . . . . . . . . Kinetic . | . . . . . . . . Secondary . | . . . . . . . . Self-Inflicted Damage 95 | . . . . 62 . . 33 Shots 5 | . . . . 3 . . 2 Rammed 2 | . 2 . . . . . . Targets Rammed 2 | . 2 . . . . . . Kicked . | . . . . . . . . Crushed . | . . . . . . . . Highest Temperature 507 | 30 146 18 66 507 20 413 242 Average Temperature 112 | 18 44 7 34 134 9 151 78 Received Heat Transfer 780 | . 36 6 . 486 24 42 186 Effects 14 | . . . . 12 . 2 . Shutdowns 6 | . . . . 5 . 1 . Energy Bleed 1 | . . . . 1 . . . Interference 4 | . . . . 4 . . . Matter Decay 2 | . . . . 1 . 1 . Damage (minor) 1 | . . . . 1 . . . Siege Activations . | . . . . . . . . Martial Activations . | . . . . . . . . Shielding Activations . | . . . . . . . . Robots Disrupted . | . . . . . . . . Combat Hostiles . | . . . . . . . . Robots Corrupted . | . . . . . . . . Combat Hostiles . | . . . . . . . . Parts Fried . | . . . . . . . . Impact Corruptions . | . . . . . . . . Robots Melted 2 | . . . . 2 . . . Combat Hostiles 1 | . . . . 1 . . . Parts Melted 21 | . 3 2 . 16 . . . Heat Transferred 7376 | 37 1295 259 37 4934 74 407 333 Parts Sabotaged . | . . . . . . . . Parts Stolen . | . . . . . . . . Parts Stripped . | . . . . . . . . Power Chain Reactions 2 | . . . . 2 . . . Alert | -11 -10 -10 -8 -8 -7 -7 -7 ------- Run | Yrd Mat Sub Mat Gar Fac Low Low Maximum Alert Level 5 | . . . . 5 3 . . Low Security (%) 29 | 100 100 . 100 15 . . . Level 1 8 | . . . . 13 . . . Level 2 18 | . . . . 18 42 . . Level 3 23 | . . . . 24 57 . . Level 4 16 | . . . . 24 . . . Level 5 2 | . . . . 3 . . . High Security . | . . . . . . . . Max Security . | . . . . . . . . Peak Influence 1705 | 5 60 . . 1705 894 . . Initial 894 | . . . . . 894 . . Average 602 | 1 11 . . 765 669 . . Influence Increases 2564 | 5 140 . . 1895 61 241 222 Destroy 0b10 Robot/C 1320 | . 100 . . 860 40 200 120 Destroy 0b10 Robot/NC 25 | 5 10 . . 10 . . . Destroy Leader 90 | . 10 . . 40 20 10 10 Allied During Kill 60 | . . . . 42 . 16 2 Successful Hack 42 | . 5 . . 37 . . . Disable Machine 15 | . . . . 15 . . . Anti-Garrison Action 750 | . . . . 750 . . . Destroy Structure 97 | . . . . 96 1 . . Lose Combat Pursuer 165 | . 15 . . 45 . 15 90 Influence Decreases 2500 | 5 140 . . 190 1287 600 278 Entered New Map 1012 | . . . . . 811 178 23 Time Decay 886 | 5 135 . . . 246 302 198 Lost Part 292 | . 5 . . 190 . 60 37 Lost Ally 160 | . . . . . 80 60 20 Purge Threat 150 | . . . . . 150 . . Squads Dispatched 3 | . 1 . . . 1 . 1 Investigation . | . . . . . . . . Extermination 1 | . . . . . 1 . . Reinforcement 1 | . 1 . . . . . . Assault 1 | . . . . . . . 1 Garrison . | . . . . . . . . Intercept . | . . . . . . . . Searches Triggered . | . . . . . . . . Construction Impeded . | . . . . . . . . Haulers Reinforced . | . . . . . . . . Active Scanning Responses . | . . . . . . . . Cargo Convoy Interrupts . | . . . . . . . . Stealth | -11 -10 -10 -8 -8 -7 -7 -7 --------- Run | Yrd Mat Sub Mat Gar Fac Low Low Distress Signals 2 | . 2 . . . . . . Communications Jammed . | . . . . . . . . Distress Signals . | . . . . . . . . Times Spotted 93 | . 16 2 1 44 3 13 14 Peak Tracking Total 9 | . 4 2 1 7 1 9 7 Tactical Retreats 9 | . 1 . . 1 . 1 6 Traps | -11 -10 -10 -8 -8 -7 -7 -7 ------- Run | Yrd Mat Sub Mat Gar Fac Low Low Traps Triggered 6 | . . . . 5 1 . . Indirectly . | . . . . . . . . Trap Hack Attempts . | . . . . . . . . Triggered . | . . . . . . . . Disarmed . | . . . . . . . . Reprogrammed . | . . . . . . . . Reused . | . . . . . . . . Traps Extracted . | . . . . . . . . Installed . | . . . . . . . . Triggered . | . . . . . . . . Machines | -11 -10 -10 -8 -8 -7 -7 -7 ---------- Run | Yrd Mat Sub Mat Gar Fac Low Low Machines Disabled 4 | . . . . 3 . 1 . Max in Single Turn 1 | . . . . 1 . . . Garrison Relay 2 | . . . . 2 . . . Machines Repaired . | . . . . . . . . Machines Dismantled . | . . . . . . . . Machines Sabotaged . | . . . . . . . . Overloaded Fab Kills . | . . . . . . . . Hacking | -11 -10 -10 -8 -8 -7 -7 -7 --------- Run | Yrd Mat Sub Mat Gar Fac Low Low Machines Accessed 10 | . 2 . 1 4 1 2 . Terminals 7 | . 2 . . 4 1 . . Fabricators . | . . . . . . . . Repair Stations . | . . . . . . . . Recycling Units . | . . . . . . . . Scanalyzers . | . . . . . . . . Garrison Access 1 | . . . 1 . . . . Total Hacks 27 | . 7 . 3 7 5 5 . Successful 13 | . 2 . 1 3 2 5 . Failed 14 | . 5 . 2 4 3 . . Catastrophic 4 | . 1 . . 2 1 . . Database Lockouts . | . . . . . . . . Manual 7 | . 3 . . . 4 . . Terminals 19 | . 7 . . 7 5 . . Fabricators . | . . . . . . . . Repair Stations . | . . . . . . . . Recycling Units . | . . . . . . . . Scanalyzers . | . . . . . . . . Garrison Access 3 | . . . 3 . . . . Terminal Hacks 12 | . 2 . . 3 2 5 . Record 5 | . . . . . 1 4 . Prototype ID Bank 1 | . 1 . . . . . . Open Door 2 | . . . . 1 . 1 . Emergency Access Points 1 | . . . . 1 . . . Unreport Threat 1 | . . . . . 1 . . Hauler Manifests 1 | . 1 . . . . . . Security Stations 1 | . . . . 1 . . . Fabricator Hacks . | . . . . . . . . Repair Station Hacks . | . . . . . . . . Recycling Unit Hacks . | . . . . . . . . Scanalyzer . | . . . . . . . . Garrison Access Hacks 1 | . . . 1 . . . . Unlock Access 1 | . . . 1 . . . . Unauthorized Hacks . | . . . . . . . . Terminals . | . . . . . . . . Fabricators . | . . . . . . . . Repair Stations . | . . . . . . . . Recycling Units . | . . . . . . . . Scanalyzers . | . . . . . . . . Garrison Access . | . . . . . . . . Data Cores Recovered 1 | . 1 . . . . . . Used . | . . . . . . . . Hacking Detections 7 | . 2 . 1 3 1 . . Full Trace Events 2 | . 1 . . 1 . . . Feedback Events . | . . . . . . . . Feedback Blocked . | . . . . . . . . Robot Schematics Acquired . | . . . . . . . . Robots Built . | . . . . . . . . Authchips . | . . . . . . . . Time . | . . . . . . . . Total Robot Build Rating . | . . . . . . . . Part Schematics Acquired . | . . . . . . . . Parts Built . | . . . . . . . . Authchips . | . . . . . . . . Time . | . . . . . . . . Total Part Build Rating . | . . . . . . . . Parts Repaired . | . . . . . . . . Time . | . . . . . . . . Parts Recycled . | . . . . . . . . Recycled Matter . | . . . . . . . . Retrieved Matter . | . . . . . . . . Retrieved Components . | . . . . . . . . Parts Scanalyzed . | . . . . . . . . Part Schematics Acquired . | . . . . . . . . Parts Damaged . | . . . . . . . . Bothacking | -11 -10 -10 -8 -8 -7 -7 -7 ------------ Run | Yrd Mat Sub Mat Gar Fac Low Low Used RIF Installer 1 | . . . . 1 . . . Robots Hacked 2 | . . . . . . 2 . Non-combat . | . . . . . . . . Combat 2 | . . . . . . 2 . Robot Hacks Applied 2 | . . . . . . 2 . overwrite_iff 1 | . . . . . . 1 . streamctrl_high 1 | . . . . . . 1 . Relay Couplers Released 8 | . . . . 8 . . . Machine Destruction 8 | . . . . 8 . . . Attached 3 | . . . . . 2 . 1 Fabnet Peak Effective % . | . . . . . . . . Robots Rewired 9 | . . . . 7 . 2 . Allies Hacked . | . . . . . . . . Hacks Repelled . | . . . . . . . . Allies | -11 -10 -10 -8 -8 -7 -7 -7 -------- Run | Yrd Mat Sub Mat Gar Fac Low Low Total Allies 11 | . . . . 7 . 4 . Largest Group 4 | . . . . 4 3 2 1 Highest-Rated Group 96 | . . . . 96 72 50 30 Highest-Rated Ally 49 | . . . . 31 24 49 30 Total Orders . | . . . . . . . . Ally Attacks 41 | . . . . 19 5 12 5 Total Damage 981 | . . . . 392 77 388 124 Kills 13 | . . . . 7 . 5 1 Allies Corrupted 3 | . . . . . . 2 1 Allies Melted . | . . . . . . . . Intel | -11 -10 -10 -8 -8 -7 -7 -7 ------- Run | Yrd Mat Sub Mat Gar Fac Low Low Active Infowar (turns) 3437 | 24 619 193 73 1846 . 245 437 Terrain 899 | 24 193 . . . . 245 437 Structural 735 | . 426 193 73 43 . . . Jamming 1901 | . . . 55 1846 . . . Robot Analysis Total . | . . . . . . . . Derelict Logs Recovered 4 | . . 1 . . . 2 1 Drone Launches . | . . . . . . . . Drone Recoveries . | . . . . . . . . Exploration | -11 -10 -10 -8 -8 -7 -7 -7 ------------- Run | Yrd Mat Sub Mat Gar Fac Low Low Turns Passed 5311 | 74 619 193 73 2560 524 667 601 Spaces Moved 3383 | 41 326 183 63 1338 382 534 516 Core 49 | 7 . . . . . . 42 Treads 784 | 34 292 . . 458 . . . Legs 1710 | . . . . 320 382 534 474 Wheels 840 | . 34 183 63 560 . . . Hover . | . . . . . . . . Flight . | . . . . . . . . Fastest Speed 50 | 50 90 90 90 95 120 105 50 Average Speed 127 | 141 152 90 100 146 120 109 101 Slowest Speed 240 | 160 160 90 105 240 120 190 150 Overloaded Moves . | . . . . . . . . Propulsion Burnouts . | . . . . . . . . Robots Hopped . | . . . . . . . . Potential Cave-ins . | . . . . . . . . Cave-ins Triggered . | . . . . . . . . Exploration Rate (%) 41 | 4 60 18 12 97 14 62 64 Regions Visited 7 Branch Regions 3 Pre-discovered Areas 1 | . . . . . . 1 . Known Exits Taken 2 | . . . 1 . . 1 . Unknown Exits Taken 4 | 1 1 1 . . 1 . . Scrap Searched 3 | . . . . . . 2 1 Spaces Dug 1 | . . . . . 1 . . Terrain Destroyed 7 | . . . . 6 1 . . Melee 1 | . . . . . 1 . . Projectile . | . . . . . . . . AOE 6 | . . . . 6 . . . Terrain Rammed . | . . . . . . . . Walls Destroyed . | . . . . . . . . Machines Disabled . | . . . . . . . . Actions | -11 -10 -10 -8 -8 -7 -7 -7 --------- Run | Yrd Mat Sub Mat Gar Fac Low Low Total 3934 | 52 385 197 70 1659 428 580 563 Wait 26 | . 2 3 . 8 13 . . Move 3377 | 40 325 182 63 1337 381 533 516 Hop . | . . . . . . . . Pick Up 41 | 4 8 1 2 20 4 1 1 Fast Attach 44 | 7 2 1 1 20 . 5 8 Attach 37 | . 4 . 3 16 3 4 7 Detach 18 | . 3 . . 8 . 4 3 Swap 19 | . . 1 . 8 3 5 2 Drop 34 | . 4 2 . 18 4 1 5 Fire 216 | 1 35 7 1 136 4 18 14 Melee 41 | . . . . 14 11 9 7 Ram . | . . . . . . . . Kick . | . . . . . . . . Crush 2 | . 2 . . . . . . Escape Stasis 34 | . . . . 29 5 . . Rewire 45 | . . . . 45 . . . Trap . | . . . . . . . . Miscellaneous . | . . . . . . . . Route ------- -11/Scrapyard -10/Materials (discovered 3 exits: [*Mat x2] / [*Sub]) -10/Subcaves (discovered 2 exits: *Mat x2) -8/Materials -8/Garrison (discovered 3 exits: *Fac x3) -7/Factory -7/Lower Caves -7/Lower Caves History --------- Turn | Location | Event 14 | -11/Scrapyard | Discovered new exit (range 16) 75 | -11/Scrapyard | Entered Materials 227 | -10/Materials | Discovered new exit (range 16) 308 | -10/Materials | Build established: Mutant 494 | -10/Materials | Discovered new exit (range 13) 575 | -10/Materials | Derelicts attacked the area 687 | -10/Materials | Discovered new exit (range 8) 694 | -10/Materials | Entered Subcaves 695 | -10/Subcaves | Approached by a straggling Scientist 724 | -10/Subcaves | Discovered new exit (range 5) 736 | -10/Subcaves | Learned Materials terminal intel 755 | -10/Subcaves | Shifting Twisted Machinery released Sub. Beam Cannon 761 | -10/Subcaves | Shifting Twisted Machinery released Sub. Monowheel 828 | -10/Subcaves | A swath of the cavern ceiling suddenly collapsed 870 | -10/Subcaves | Discovered new exit (range 14) 887 | -10/Subcaves | Entered Materials 887 | -8/Materials | Evolved 4 slots: Power x1, Utility x3 888 | -8/Materials | Loaded intel: 12 terminal locations 960 | -8/Materials | Identified exit to Garrison 960 | -8/Materials | Entered Garrison 988 | -8/Garrison | Triggered checkpoint 1050 | -8/Garrison | Triggered checkpoint 1190 | -8/Garrison | Lost 3 parts (2n1u) 1291 | -8/Garrison | Build established: Scavenger-Mutant 1524 | -8/Garrison | Triggered checkpoint 1564 | -8/Garrison | Triggered checkpoint 1798 | -8/Garrison | Destroyed 7 combat bots 1858 | -8/Garrison | Triggered checkpoint 1904 | -8/Garrison | Discovered new exit (range 13) 2068 | -8/Garrison | Learned Factory security intel 2206 | -8/Garrison | Triggered checkpoint 2234 | -8/Garrison | System corruption reached 10% 2244 | -8/Garrison | Lost 3 parts (1n1u1w) 2277 | -8/Garrison | Discovered new exit (range 10) 2315 | -8/Garrison | Installed Relay Interface Framework 2342 | -8/Garrison | Triggered checkpoint 2482 | -8/Garrison | Triggered checkpoint 2533 | -8/Garrison | Discovered new exit (range 13) 2564 | -8/Garrison | Core integrity fell below 50% 2591 | -8/Garrison | Lost 3 parts (1p2u) 2654 | -8/Garrison | Triggered checkpoint 2854 | -8/Garrison | Lost 4 parts (1p1n2u) 3086 | -8/Garrison | Garrison Relay disabled 3202 | -8/Garrison | Garrison Relay disabled 3520 | -8/Garrison | Entered Factory 3520 | -7/Factory | Accompanied by 4 allies 3520 | -7/Factory | Evolved 2 slots: Propulsion x1, Utility x1 3575 | -7/Factory | Lost 4 allies 3980 | -7/Factory | Discovered new exit (range 15) 4044 | -7/Factory | Entered Lower Caves 4136 | -7/Lower Caves | Learned location of Extension (-6) 4145 | -7/Lower Caves | Attracted the attention of an 0b10 outpost 4172 | -7/Lower Caves | System corruption reached 10% 4223 | -7/Lower Caves | Lost 6 parts (2n4u) 4438 | -7/Lower Caves | Build established: Bothacker-Mutant 4463 | -7/Lower Caves | Identified exit to Lower Caves 4654 | -7/Lower Caves | Entered an active Warlord outpost 4668 | -7/Lower Caves | Learned Extension stockpile data 4668 | -7/Lower Caves | Learned Factory security intel 4711 | -7/Lower Caves | Entered another Lower Caves area 4711 | -7/Lower Caves | Accompanied by 1 ally 4943 | -7/Lower Caves | Attracted the attention of an 0b10 outpost 5025 | -7/Lower Caves | Lost 5 parts (1p2n1u1w) 5115 | -7/Lower Caves | Learned location of 1 exit from Proximity Caves 5129 | -7/Lower Caves | Lost 4 parts (2p1n1w) 5267 | -7/Lower Caves | Core integrity fell below 50% 5292 | -7/Lower Caves | Core integrity fell below 20% 5312 | -7/Lower Caves | Destroyed by Y-64 Sentinel with Wave Gun Last Messages --------------- 05266_ Penetrated by Slug. 05267_ Dropped Med. Storage Unit. 05268_ Relay Coupler [Grunt] destroyed. 05280_ System corrupted: Matter fused (-9). 05288_ S-27 Virus destroyed. 05289_ Adv. Weight Redist. System destroyed. 05291_ Acquired 29 matter. 05291_ S-27 Virus suffers critical hit (Impale). 05291_ S-27 Virus destroyed. 05295_ VTOL Module fries itself beyond repair. 05298_ S-27 Virus destroyed. 05301_ Acquired Lgt. Nuclear Core. 05302_ System corrupted: Component data lost. 05305_ S-27 Virus destroyed. 05307_ Acquired 25 matter. 05308_ VTOL Module fries itself beyond repair. 05309_ Penetrated by Slug. 05310_ Autogun fries itself beyond repair. 05310_ Acquired VTOL Module. Map ----- +----------------------------------------------------+ | ??????? ?????# ##??????????????????? | | ?????????????### #### #???? ?????????????? | | ?????????????### #?## #??????????????????? | | ??????? ?????# ### ##?#???????????????? | | ?????????????## ## ##????????????????? | | ?????????????## # ##???????????????? | | ?????????????# ## ##??????????????? | | ????? ???????## ### = #??????????????? | | ????????????#### #### !* #??????????????? | | ????????????# ## ### ! #??????????????? | | ??????#??#### ## #???##????????# | | ??? ?????# ### ##???????#?????? | | ?????????# ##?## ###????????????#? | | ?????????# ## ##???## #???????????????? | | ???????? ??# ####???## #?????????????#?# | | ???????#????# ##?????#?### "#??????? ??????? | | ????????????# ####??????????#"%##???? ?????????? | | ????????????# ##?######?????# " ????????????#?? | | ?????????#### #### #?????? ??????####???? | | ????????## # ## #??????# ?????# ##??? | | ????????# #???????## #????# #?#? | | ???????## ##?????????# ##???## #??# | | ??????## #??????????# #??#### #?## | | ?????## ##??#########b #### ### | | ????## ##??# Y # ## | | ???## ##?#@ ##### | | ???# ### [ "#### #?## | | ???# # % ""### ### | | ??## % """ "" ## | | ??# ### ##### * " ## | | ## ##?## #??## " ##### ## | | # #????# ##?# """"" ##???# ## | | ## #?????# ### """"" #????## ### | | ?##??????###### " "" #?????# #### | | ??????????????# " " ##??#?## #??# | | ??????????????# ##### ## ###" #?#????####??# | | ??????????????###???##### ####" #???#???#????# | | ???????????#????????????# #????????????? | | ????????????????????????# #???#???##???? | | ????????????????????????#############????????????? | | ???????????????????????????????#?????????????????? | | ?????????????????????????????????????????????????? | | ??????????????????????????????????#??????????????? | | ???????#?????????????????????????????????????????? | | ?????????????????????????????????????????????????? | | ?????????????????????????????????????????????????? | | ????????????????????????????????#????????????????? | | ???????????????????????????#?????????????????????? | | ???????????????????#??????????#??????????????????? | | ?????????????????????????????????????????????????? | +----------------------------------------------------+ Best States ------------- Heat Dissipation 59 Coolant Potential 50 Energy Generation 31 Energy Capacity 490 Matter Stores 300 Matter Capacity 300 Sight Range 16 Terrain Scan Range 16 Terrain Scan Density 10 Jamming Range 12 Additional Mass Support 9 Armor Coverage 375 Core Shielding 20 Power Shielding 33 Phase Shifting 5 Evasion (%) 57 Recoil Reduction 2 Offensive Hacking 11 Relay Coupler Types 2 Relay Coupler Value 50 Item Schematics ----------------- None Robot Schematics ------------------ None Fabricated ------------ Nothing Repaired ---------- Nothing Alien Tech Used ----------------- None Achievements -------------- None Challenges ------------ None Game ------ Seed ReinforcedEncryptedTearclaws Manual? 0 Play Time 00:38:36 Cumulative 106.0 hours Start 2025.06.01 @ 20:00:18 End 2025.06.01 @ 20:36:59 Sessions 1 Manual Loads 0 Difficulty Rogue Special Mode None Game No. 206 Rogue 206 Adventurer 0 Explorer 0 Win Type - Total 0 Types 0/0/0/0/0/0/0/0/0/0 Lore% 26 Gallery% 44 Achievement% 34 Wizard Run 0 Options --------- Layout 1 ASCII 0 Keyboard 1 Movement Arrows Keybinds 0 Fullscreen 2 Font 24/Smallcaps Map View 50x35 Zoom Use 0% Tactical HUD 1 Map Filters NONE Filters NONE Steam 1 RUN: d5a3a4f4-183a-4e6c-bd0b-25ef7b97fd44